Workbook

Sheet Anexo I
A2: ANEXO I - PLANILHA DE QUANTIDADES E PREÇOS
A5: SERVIÇOS DE ADMINISTRAÇÃO LOCAL, EFICIENTIZAÇAO ENERGÉTICA, AMPLIAÇÃO, OPERAÇÃO, EVENTOS E MANUTENÇÃO DA ILUMINAÇÃO PÚBLICA
A7: ITEM | B7: ESPECIFICAÇÃO | C7: UNID. | D7: QUANT. | E7: UNIT. | F7: TOTAL
A8: 1.1 | B8: Abertura e fechamento de cava para poste com altura de até 12m. | C8: un. | D8: 1 | E8: 113.74 | F8: =E8*D8 -> 113.74
A9: 1.2 | B9: Abertura e fechamento de cava para poste com altura maior que 12m. | C9: un. | D9: 1 | E9: 114.4 | F9: 114.4
A10: 1.3 | B10: Abertura e fechamento de vala com até 60 cm de profundidade. | C10: m | D10: 10 | E10: 91.88 | F10: 918.8
A11: 1.4 | B11: Administração Local e Operação Informatizada | C11: mês | D11: 12 | E11: 41303 | F11: 495636
A12: 1.5 | B12: Atualização de cadastro | C12: m | D12: 742 | E12: 16.25 | F12: 12057.5
A13: 1.6 | B13: Base concretada para poste padrão Celesc | C13: un. | D13: 1 | E13: 230.17 | F13: 230.17
A14: 1.7 | B14: Cadastro georeferenciado de unidade de iluminação pública. | C14: un. | D14: 10 | E14: 21.5 | F14: 215
A15: 1.8 | B15: Construção de nicho para projetor embutido no piso | C15: un. | D15: 1 | E15: 92.22 | F15: 92.22
A16: 1.9 | B16: Descarte controlado de lâmpadas nocivas ao meio ambiente | C16: un. | D16: 800 | E16: 1.68 | F16: 1344
A17: 1.10 | B17: Envelopamento de eletrodutos ou cabo com concreto . | C17: m | D17: 10 | E17: 31.5 | F17: 315
A18: 1.11 | B18: Execução de base engastada, com tubo de concreto, para poste até 10 metros de altura. | C18: un. | D18: 1 | E18: 572.96 | F18: 572.96
A19: 1.12 | B19: Execução de base engastada, com tubo de concreto, para poste com altura maior que 10 metros e até 15 metros. | C19: un. | D19: 1 | E19: 792.28 | F19: 792.28
A20: 1.13 | B20: Base engastada com tubo de concreto para postes com comprimento maior que 15 m | C20: un. | D20: 1 | E20: 921.77 | F20: 921.77
A21: 1.14 | B21: Hospedagem de dados operacionais do telemonitoramento de cada unidade | C21: un x mês | D21: 150 | E21: 3.3 | F21: 495
A22: 1.15 | B22: Instalação de armação secundaria | C22: pç | D22: 2 | E22: 38.61 | F22: 77.22
A23: 1.16 | B23: Instalação de caixa de passagem em concreto armado, circular ou retangular, com tampa de concreto. | C23: un. | D23: 1 | E23: 36.62 | F23: 36.62
A24: 1.17 | B24: Instalação de caixa de passagem em concreto armado, com tampa de ferro fundido, padrão Celesc | C24: m | D24: 1 | E24: 37.12 | F24: 37.12
A25: 1.18 | B25: Instalação de chave magnética. | C25: un. | D25: 1 | E25: 29.72 | F25: 29.72
A26: 1.19 | B26: Instalação de condutores aéreos, bitola superior a 35 mm2 e até 95mm², em rede secundária, isolados ou nús | C26: m | D26: 10 | E26: 0.89 | F26: 8.9
A27: 1.20 | B27: Instalação de condutores isolados até 1 kV, com bitola até 35mm2, embutidos em eletrodutos, postes ou braços | C27: m | D27: 20 | E27: 19.31 | F27: 386.2
A28: 1.21 | B28: Instalação de condutores isolados até 1 kV, singelos, duplex, triplex, ou quadruplex, aéreos, com bitola de até 50mm2. | C28: m | D28: 20 | E28: 19.31 | F28: 386.2
A29: 1.22 | B29: Instalação de conector perfurante | C29: un. | D29: 30 | E29: 1.94 | F29: 58.2
A30: 1.23 | B30: Instalação de conjunto de ancoragem ou de suspensão de cabo multiplexado | C30: cj | D30: 2 | E30: 56.97 | F30: 113.94
A31: 1.24 | B31: Instalação de Controlador de Grupo de luminárias, incluindo o projeto da rede de comunicação de dados, estudos de localização do concentrador, configuração e testes de comunicação de todas as unidades | C31: un. | D31: 1 | E31: 18849.16 | F31: 18849.16
A32: 1.25 | B32: Instalação de Controlador Individual de luminária para telemonitoramento | C32: un. | D32: 150 | E32: 160.63 | F32: 24094.5
A33: 1.26 | B33: Instalação de decoração natalina tipo cordão 100 lâmpadas | C33: un. | D33: 50 | E33: 8 | F33: 400
A34: 1.27 | B34: Instalação de eletroduto aparente. | C34: m | D34: 10 | E34: 10.51 | F34: 105.1
A35: 1.28 | B35: Instalação de eletroduto corrugado, com bitola até 4”. | C35: m | D35: 10 | E35: 105.64 | F35: 1056.4
A36: 1.29 | B36: Instalação de enfeite natalino tipo meteoro, cascata, ou semelhante | C36: un. | D36: 60 | E36: 9.37 | F36: 562.2
A37: 1.30 | B37: Instalação de figura natalina | C37: m | D37: 10 | E37: 43.66 | F37: 436.6
A38: 1.31 | B38: Instalação de haste de aterramento. | C38: un. | D38: 5 | E38: 115.44 | F38: 577.2
A39: 1.32 | B39: Instalação de luminária aberta ou fechada, em poste da rede de distribuição de energia elétrica, em ponta de braço de até 1 metro de comprimento. | C39: un. | D39: 10 | E39: 87.66 | F39: 876.6
A40: 1.33 | B40: Instalação de luminária fechada, em poste da rede de distribuição de energia elétrica, em ponta de braço de comprimento maior que 1 metro. | C40: un. | D40: =SUM(D104:D105) -> 444 | E40: 257.84 | F40: =E40*D40 -> 114480.96
A41: 1.34 | B41: Instalação de luminária de IP, decorativa, ou tipo pétala ou de projetor, em poste exclusivo para iluminação pública, de até 10 metros altura. | C41: un. | D41: 2 | E41: 227.75 | F41: 455.5
A42: 1.35 | B42: Instalação de luminária de IP, decorativa, tipo pétala, ou de projetor, em poste exclusivo para iluminação pública, maior que 10 metros e até 15 metros. | C42: un. | D42: 1 | E42: 430.5 | F42: 430.5
A43: 1.36 | B43: Instalação de mangueira (corda) luminosa com LEDs | C43: m | D43: 50 | E43: 4.65 | F43: 232.5
A44: 1.37 | B44: Instalação de pára-raios 15kV | C44: un. | D44: 3 | E44: 35.42 | F44: 106.26
A45: 1.38 | B45: Instalação de padrão de entrada de energia, em tensão secundária, em mureta de concreto, existente. | C45: un. | D45: 1 | E45: 408 | F45: 408
A46: 1.39 | B46: Instalação de plaqueta com o número de identificação patrimonial de cada unidade de iluminação pública. | C46: un. | D46: 100 | E46: 24.48 | F46: 2448
A47: 1.40 | B47: Instalação de poste de aço ou de concreto, de comprimento até 12metros. | C47: un. | D47: 1 | E47: 288.25 | F47: 288.25
A48: 1.41 | B48: Instalação de poste de aço ou de concreto, de comprimento entre 12 e 15 metros. | C48: un. | D48: 1 | E48: 567.75 | F48: 567.75
A49: 1.42 | B49: Instalação de poste de aço ou de concreto, de comprimento maior de 15 metros. | C49: un. | D49: 1 | E49: 1215 | F49: 1215
A50: 1.43 | B50: Instalação de projetor com tecnologia de LEDs em poste com altura maior que 15m | C50: un. | D50: 1 | E50: 289 | F50: 289
A51: 1.44 | B51: Instalação de projetor ou luminária em fachada ou outras estruturas, em altura de até 10 metros. | C51: un. | D51: 1 | E51: 199 | F51: 199
A52: 1.45 | B52: Instalação de projetor ou luminária em fachada ou outras estruturas em altura maior que 10 metros | C52: un. | D52: 1 | E52: 221 | F52: 221
A53: 1.46 | B53: Instalação de projetor ou luminária embutido no piso. | C53: un. | D53: 1 | E53: 257 | F53: 257
A54: 1.47 | B54: Instalação de quadro de comando e proteção de iluminação pública, corrente nominal 20 a 70A. | C54: un. | D54: 3 | E54: 538.43 | F54: 1615.29
A55: 1.48 | B55: Instalação de relé fotoelétrico. | C55: un. | D55: 100 | E55: 11.6 | F55: 1160
A56: 1.49 | B56: Instalação de subestação de distribuição, 15kV, com potência nominal até 150 KVA, em poste | C56: un. | D56: 1 | E56: 1917.5 | F56: 1917.5
A57: 1.50 | B57: Instalação mangueira luminosa | C57: m | D57: 50 | E57: 4.68 | F57: 234
A58: 1.51 | B58: Manutenção do sistema de iluminação pública | C58: mês | D58: 12 | E58: 52240 | F58: 626880
A59: 1.52 | B59: Medição & Verificação - Elaboração de Plano de M&V de acordo com PIMVP | C59: un. | D59: 1 | E59: 13267.5 | F59: 13267.5
A60: 1.53 | B60: Medição & Verificação - Elaboração de Relatório de M&V de acordo com PIMVP | C60: un. | D60: 1 | E60: 7906 | F60: 7906
A61: 1.54 | B61: Medição & Verificação - Instalação e retirada de medidor em luminária | C61: un. | D61: 1 | E61: 81210 | F61: 81210
A62: 1.55 | B62: Pintura de poste com altura até 10m. | C62: m | D62: 1 | E62: 197.5 | F62: 197.5
A63: 1.56 | B63: Pintura de poste com altura maior que 10 m e até 15m. | C63: un. | D63: 1 | E63: 297.5 | F63: 297.5
A64: 1.57 | B64: Projeto executivo de figura de iluminação temática para eventos natalinos e outros | C64: un | D64: 10 | E64: 712 | F64: 7120
A65: 1.58 | B65: Projeto executivo para iluminação de praças, pontes, viadutos, monumentos, prédios históricos, ruas, avenida, áreas de lazer, praças de esporte, passeios e outros. | C65: un | D65: 10 | E65: 46.6 | F65: 466
A66: 1.59 | B66: Projeto executivo para iluminação de vias públicas | C66: un | D66: 10 | E66: 36.05 | F66: 360.5
A67: 1.60 | B67: Remoção de chave magnética ou relé fotoelétrico | C67: un. | D67: 20 | E67: 9.66 | F67: 193.2
A68: 1.61 | B68: Remoção de conjunto de suspensão de cabo multiplexado | C68: un. | D68: 2 | E68: 9.66 | F68: 19.32
A69: 1.62 | B69: Remoção de enfeite natalino tipo meteoro, cascata ou semelhante | C69: un. | D69: 60 | E69: 3.75 | F69: 225
A70: 1.63 | B70: Remoção de enfeite tipo cordão | C70: un. | D70: 50 | E70: 3.1 | F70: 155
A71: 1.64 | B71: Remoção de estrutura secundária de distribuição, por roldana | C71: un. | D71: 2 | E71: 14 | F71: 28
A72: 1.65 | B72: Remoção de figura natalina | C72: m | D72: 10 | E72: 17.25 | F72: =E72*D72 -> 172.5
A73: 1.66 | B73: Remoção de luminária aberta ou fechada, em braço de até 1 metro de comprimento, em postes da rede de distribuição de energia elétrica energizada | C73: un. | D73: 1 | E73: 34.75 | F73: 34.75
A74: 1.67 | B74: Remoção de luminária em braço de comprimento maior que 1 metro, em postes da rede de distribuição de energia elétrica energizada | C74: un. | D74: 1 | E74: 108.25 | F74: 108.25
A75: 1.68 | B75: Remoção de luminária ou projetor, em altura até 10m, de postes exclusivos de iluminação publica | C75: un. | D75: 1 | E75: 92.75 | F75: 92.75
A76: 1.69 | B76: Remoção de luminária ou projetor em altura maior que 10 e até 15 metros, em postes exclusivos de iluminação pública | C76: un. | D76: 1 | E76: 173.5 | F76: 173.5
A77: 1.70 | B77: Remoção de mangueira luminosa | C77: m | D77: 50 | E77: 1.92 | F77: 96
A78: 1.71 | B78: Remoção de poste com comprimento de até 10m | C78: un. | D78: 1 | E78: 90 | F78: 90
A79: 1.72 | B79: Remoção de poste com comprimento maior que 10 e até 15 m | C79: un. | D79: 1 | E79: 167 | F79: 167
A80: 1.73 | B80: Remoção de poste com comprimento superior a 15 m | C80: un. | D80: 1 | E80: 555 | F80: 555
A81: 1.74 | B81: Remoção e reconstituição de calçada ou piso com lajota, concreto ou asfalto | C81: m2 | D81: 1 | E81: 116 | F81: 116
A82: 1.75 | B82: Remoção e reconstituição de piso com grama. | C82: m2 | D82: 1 | E82: 26.5 | F82: 26.5
A83: 1.76 | B83: Remoção de subestação em poste com potência nominal de 150 KVA | C83: un. | D83: 1 | E83: 738.5 | F83: 738.5
A84: TOTAL - SERVIÇOS ( I ) | F84: =SUM(F8:F83) -> 1429132.5
A85: MATERIAIS
A88: ITEM | B88: ESPECIFICAÇÃO | C88: UNID. | D88: QUANT. | E88: UNIT-BDI | F88: TOTAL
A89: 2.1 | B89: Abraçadeira de nylon autotravante, 148x3,6mm | C89: cento | D89: 2 | E89: 9.86 | F89: =D89*E89 -> 19.72
A90: 2.2 | B90: Abraçadeira de nylon autotravante, 240x4,6mm | C90: cento | D90: 882 | E90: 20.37 | F90: 17966.34
A91: 2.3 | B91: Abraçadeira de nylon autotravante, 390x7,6mm | C91: cento | D91: 2 | E91: 45.69 | F91: =D91*E91 -> 91.38
A92: 2.4 | B92: Abraçadeira plástica para rede multiplexada de BT, padrão CELESC | C92: pç | D92: 2 | E92: 12.58 | F92: =D92*E92 -> 25.16
A93: 2.5 | B93: Abraçadeira tipo cunha, em aço galvanizado a fogo, cônica diâmetro 3/4", tipo cunha | C93: pç | D93: 2 | E93: 0.78 | F93: 1.56
A94: 2.6 | B94: Abraçadeira tipo cunha, em aço galvanizado a fogo, cônica diâmetro 1", tipo cunha | C94: pç | D94: 2 | E94: 1.81 | F94: 3.62
A95: 2.7 | B95: Abraçadeira tipo cunha, em aço galvanizado a fogo, cônica, diâmetro 1.1/2", tipo cunha | C95: pç | D95: 2 | E95: 1.29 | F95: 2.58
A96: 2.8 | B96: Abraçadeira tipo cunha, em aço galvanizado a fogo, cônica, diâmetro 1.1/4", tipo cunha | C96: pç | D96: 2 | E96: 0.76 | F96: 1.52
A97: 2.9 | B97: Abraçadeira tipo cunha, em aço galvanizado a fogo, cônica, diâmetro 2", tipo cunha | C97: pç | D97: 2 | E97: 1.86 | F97: 3.72
A98: 2.10 | B98: Alça pré-formada de distribuição para cabo de alumínio CA/CAA 2 AWG, padrão CELESC. | C98: pç | D98: 2 | E98: 3.7 | F98: 7.4
A99: 2.11 | B99: Armação secundária de 1 estribo, com cupilha, haste dimensões 110x125mm, ± 5%, padrão CELESC. | C99: pç | D99: 1 | E99: 14.56 | F99: 14.56
A100: 2.12 | B100: Armação secundária de 2 estribos, com haste e cupilha, dimensões 310x325mm, ± 10%, padrão CELESC. | C100: pç | D100: 1 | E100: 30.66 | F100: 30.66
A101: 2.13 | B101: Arruela quadrada, 38x3mm, para parafuso M16, padrão CELESC. | C101: pç | D101: 445 | E101: 0.37 | F101: 164.65
A102: 2.14 | B102: Base (tomada) para relé fotoelétrico, 220V/10ª, corpo em polipropileno estabilizado contra radiações UV, contatos em latão estanhado, suporte de aço galvanizado a fogo, Cabos de ligação na cor Preto para a fase, Vermelho para o retorno e Branco para o comum | C102: pç | D102: 10 | E102: 9.85 | F102: 98.5
A103: 2.15 | B103: Braço para luminária, ø 25mm x 1,00m, padrão CELESC | C103: pç | D103: 1 | E103: 36.19 | F103: 36.19
A104: 2.16 | B104: Braço para luminária, ø 33mm x 1,50m, com sapata,padrão CELESC CELESC | C104: pç | D104: 362 | E104: 70.45 | F104: 25502.9
A105: 2.17 | B105: Braço para luminária, ø 48mm x 3,00m, com sapata, padrão CELESC | C105: pç | D105: 82 | E105: 130.11 | F105: 10669.02
A106: 2.18 | B106: Braço ornamental/decorativo de IP em forma de núcleo na configuração de sextante, capaz de suportar 2 projetores para lâmpadas de descarga 400W de um lado e uma luminária de iluminação pública de 400W na extremidade oposta, com tirantes de sustentação e demais acessórios em aço inoxidável , para fixação em topo de poste de aço, ref. modelo Portofino, fabricação Conipost ou similar. | C106: pç | D106: 1 | E106: 4093.05 | F106: 4093.05
A107: 2.19 | B107: Braço / Suporte metálico em aço galvanizado a fogo pintado com tinta poliéster, formado por tubo em forma de circunferência suportado por 2 tirantes a 180º presos ao topo do poste e dois tirantes em posição transversal fixados no poste, abaixo do suporte, para instalação de uma luminária voltada para a avenida e dois projetores voltados para a praia. | C107: pç | D107: 1 | E107: 4095.08 | F107: 4095.08
A108: 2.20 | B108: Bucha de nylon, tipo S10, com parafuso de aço inox. | C108: pç | D108: 1 | E108: 1.1 | F108: 1.1
A109: 2.21 | B109: Bucha de nylon, tipo S6, com parafuso de aço inox. | C109: pç | D109: 1 | E109: 0.33 | F109: 0.33
A110: 2.22 | B110: Bucha de nylon, tipo S8, com parafuso de aço inox. | C110: pç | D110: 1 | E110: 0.57 | F110: 0.57
A111: 2.23 | B111: Bucha e arruela de alumínio silício diâmetro 1". | C111: pç | D111: 1 | E111: 1.57 | F111: 1.57
A112: 2.24 | B112: Bucha e arruela de alumínio silício diâmetro 11/2". | C112: pç | D112: 1 | E112: 2.81 | F112: 2.81
A113: 2.25 | B113: Bucha e arruela de alumínio silício diâmetro 11/4". | C113: pç | D113: 1 | E113: 4.09 | F113: 4.09
A114: 2.26 | B114: Bucha e arruela de alumínio silício diâmetro 3/4". | C114: pç | D114: 1 | E114: 0.88 | F114: 0.88
A115: 2.27 | B115: Cabeçote de alumínio para eletroduto diâmetro 11/2". | C115: pç | D115: 1 | E115: 4.11 | F115: 4.11
A116: 2.28 | B116: Cabeçote de alumínio para eletroduto, diâmetro 2". | C116: pç | D116: 1 | E116: 9 | F116: 9
A117: 2.29 | B117: Cabeçote de alumínio para eletroduto, diâmetro 3". | C117: pç | D117: 1 | E117: 12.78 | F117: 12.78
A118: 2.30 | B118: Cabo de alumínio multiplexado, 3x35+35mm2, isolado em XLPE, 0,6/1kV | C118: m | D118: 50 | E118: 13.34 | F118: 667
A119: 2.31 | B119: Cabo de alumínio multiplexado, 3x50+50mm2, isolado em XLPE, 0,6/1kV | C119: m | D119: 50 | E119: 19.36 | F119: 968
A120: 2.32 | B120: Cabo de cobre nu, meio duro, 25,0mm2, 7 fios, padrão CELESC. | C120: kg | D120: 5 | E120: 61.04 | F120: 305.2
A121: 2.33 | B121: Cabo de cobre unipolar, 2,5mm2, isolado em EPR ou XLPE, 0,6/1kV | C121: m | D121: 100 | E121: 1.33 | F121: =D121*E121 -> 133
A122: 2.34 | B122: Cabo de cobre unipolar, 4,0mm2, isolado em EPR ou XLPE, 0,6/1kV | C122: m | D122: 100 | E122: 2.22 | F122: 222
A123: 2.35 | B123: Cabo de cobre unipolar, 6,0mm2, isolado em EPR ou XLPE, 0,6/1kV | C123: m | D123: 100 | E123: 2.72 | F123: 272
A124: 2.36 | B124: Cabo de cobre unipolar, 10,0mm2, isolado em EPR ou XLPE, 0,6/1kV | C124: m | D124: 100 | E124: 4.98 | F124: 498
A125: 2.37 | B125: Cabo de cobre unipolar, 2,5mm2, isolado em PVC, 450/750V | C125: m | D125: 5000 | E125: 1.06 | F125: 5300
A126: 2.38 | B126: Cabo de cobre unipolar, 4,0mm2, isolado em PVC, 450/750V | C126: m | D126: 100 | E126: 2.25 | F126: 225
A127: 2.39 | B127: Cabo de cobre unipolar,10,0mm2. isolado em PVC, 450/750V | C127: m | D127: 100 | E127: 4.28 | F127: 428
A128: 2.40 | B128: Cabo de cobre unipolar,16,0mm2, isolado em PVC, 450/750, | C128: m | D128: 100 | E128: 6.17 | F128: 617
A129: 2.41 | B129: Cabo de cobre unipolar, isolado em PVC, 450/750V, 25,0mm2. | C129: m | D129: 50 | E129: 10.99 | F129: 549.5
A130: 2.42 | B130: Cabo paralelo de cobre, flexível, # 1,5mm2, 750V | C130: m | D130: 100 | E130: 1.27 | F130: 127
A131: 2.43 | B131: Cabo paralelo de cobre, flexível, # 2,5mm2, 750V | C131: m | D131: 100 | E131: 2.79 | F131: 279
A132: 2.44 | B132: Caixa de inspeção em concreto, dimensões: 300x300x400mm, com tampa de concreto com alça metálica | C132: pç | D132: 1 | E132: 68.99 | F132: 68.99
A133: 2.45 | B133: Caixa de passagem em concreto armado, circular, Ø 400x500mm, com tampa. | C133: pç | D133: 1 | E133: 97.33 | F133: 97.33
A134: 2.46 | B134: Caixa de passagem em concreto, dimensões internas de 650x410x700mm (CxLxP), padrão CELESC. | C134: pç | D134: 1 | E134: 164.2 | F134: 164.2
A135: 2.47 | B135: Chave para comando de IP, 160/240V, 1x50A, NA com base para relê fotoelétrico, padrão CELESC . | C135: pç | D135: 1 | E135: 235.12 | F135: 235.12
A136: 2.48 | B136: Chave para comando de IP, 160/240V, 2x30A, NA (opera com relê NF), com base para relê fotoelétrico, padrão CELESC. | C136: pç | D136: 1 | E136: 352.92 | F136: 352.92
A137: 2.49 | B137: Cinta de aço inoxidável, autotravante, dimensões 266x4,6mm. | C137: pç | D137: 500 | E137: 1.96 | F137: 980
A138: 2.50 | B138: Cinta para poste circular, em aço galvanizado a fogo, diâmetro 190mm, padrão CELESC. | C138: pç | D138: 3 | E138: 20.94 | F138: 62.82
A139: 2.51 | B139: Cinta para poste circular, em aço galvanizado a fogo, diâmetro 200mm, padrão CELESC. | C139: pç | D139: 220 | E139: 21.26 | F139: 4677.2
A140: 2.52 | B140: Cinta para poste circular, em aço galvanizado a fogo, diâmetro 210mm, padrão CELESC. | C140: pç | D140: 220 | E140: 21.82 | F140: 4800.4
A141: 2.53 | B141: Cinta para poste circular, em aço galvanizado a fogo, diâmetro 220mm, padrão CELESC. | C141: pç | D141: 3 | E141: 22.37 | F141: 67.11
A142: 2.54 | B142: Cinta para poste circular, em aço galvanizado a fogo, diâmetro 230mm, padrão CELESC. | C142: pç | D142: 3 | E142: 26.33 | F142: 78.99
A143: 2.55 | B143: Cinta para poste circular, em aço galvanizado a fogo, diâmetro 240mm, padrão CELESC. | C143: pç | D143: 3 | E143: 24.26 | F143: 72.78
A144: 2.56 | B144: Cinta para poste circular, em aço galvanizado a fogo, diâmetro 250mm, padrão CELESC. | C144: pç | D144: 3 | E144: 24.54 | F144: 73.62
A145: 2.57 | B145: Conector cunha de BT, tipo A, padrão CELESC. | C145: pç | D145: 10 | E145: 4.62 | F145: 46.2
A146: 2.58 | B146: Conector cunha de BT, tipo B, padrão CELESC. | C146: pç | D146: 10 | E146: 4.6 | F146: 46
A147: 2.59 | B147: Conector cunha de BT, tipo I (cinza), padrão CELESC. | C147: pç | D147: 10 | E147: 4.48 | F147: 44.8
A148: 2.60 | B148: Conector cunha de BT, tipo II, (verde), padrão CELESC. | C148: pç | D148: 440 | E148: 3.12 | F148: 1372.8
A149: 2.61 | B149: Conector cunha de BT, tipo III (vermelho), padrão CELESC. | C149: pç | D149: 440 | E149: 2.14 | F149: 941.6
A150: 2.62 | B150: Conector cunha de BT, tipo IV (azul), padrão CELESC. | C150: pç | D150: 10 | E150: 2.12 | F150: 21.2
A151: 2.63 | B151: Conector cunha para conexão de haste de aterramento 5/8" e cabo de cobre 25 a 35mm2. | C151: pç | D151: 5 | E151: 7.54 | F151: 37.7
A152: 2.64 | B152: Conector de derivação perfurante 10 - 95 x 1,5 -10mm2. | C152: pç | D152: 445 | E152: 5.15 | F152: 2291.75
A153: 2.65 | B153: Conector de derivação perfurante 16 - 70 x 6 - 35mm2. | C153: pç | D153: 5 | E153: 10.16 | F153: 50.8
A154: 2.66 | B154: Conector terminal para aterramento de tubo de aço galvanizado 1 1/2" | C154: pç | D154: 5 | E154: 2.36 | F154: 11.8
A155: 2.67 | B155: Conector para corda luminosa diâmetro 13mm, com plugue e emenda | C155: pç | D155: 20 | E155: 2.61 | F155: 52.2
A156: 2.68 | B156: Controlador individual para telemonitoramento de unidade de iluminação pública, capaz de permitir apagar e acender a lâmpada, reduzir o fluxo luminoso de luminárias Led (dimerização), coletar e enviar a um estação controladora os dados de grandezas elétricas da luminária (tensão, corrente, fator de potência, potência e energia consumida) através de sinais de rádio frequência, atuando por meio de protocolo de comunicação digital DALI e/ou analógica 1-10V; 220-240 V (+/-10 %); 60 Hz; todas as frequências de operação deverão ser certificadas e liberadas pela ANATEL. | C156: pç | D156: 100 | E156: 780.33 | F156: =D156*E156 -> 78033
A157: 2.69 | B157: Controlador de grupo de luminárias, com capacidade de comunicação via rádio frequência com no mínimo 1.000 controladores individuais de luminárias e transferência de dados para o servidor do sistema de central de monitoramento por modem GSM/GPRS e permitir conexão por fibra ótica ou porta Ethernet; todas as frequências de operação deverão ser certificadas e liberadas pela ANATEL; instalado em caixa para uso ao tempo, com grau de proteção contra penetração de sólidos e líquidos IP 66. | C157: pç | D157: 1 | E157: 29026.48 | F157: 29026.48
A158: 2.70 | B158: Controlador para projetor LED RGB - Interface para integração de Sinais de Aliment. e Controle para lum. DMX/ETHERNET com tecnologia Powercore ou similar - ref ZCX400 100-240V DATA ENABLER PRO EU, fab Philips | C158: pç | D158: 1 | E158: 3623.52 | F158: 3623.52
A159: 2.71 | B159: Mangueira luminosa de PVC transparente, 2,5W/m, no mínimo, LED de emissão de luz uniforme e de alto brilho, nas cores branca ou RGB, diâmetro da mangueira mínimo de 11mm, IP65, rolo de 100m, com os seguintes acessórios, por rolo: 10 cabos de força; 10 capas terminais para acabamento final da mangueira e 50 abraçadeiras para fixação da mangueira, ref. linha Flexiled, da Pedled, ou similar | C159: m | D159: 50 | E159: 15.53 | F159: 776.5
A160: 2.72 | B160: Cordão luminoso com 100 LED, uso externo/interno, 220V, com ou sem pisca pisca. | C160: pç | D160: 50 | E160: 33.97 | F160: 1698.5
A161: 2.73 | B161: Cruzeta em aço galvanizado a fogo, em formato retangular, para suporte de até 5 projetores, similares às existentes nos postes da Av. Beira Mar (manutenção) | C161: pç | D161: 1 | E161: 1080.38 | F161: 1080.38
A162: 2.74 | B162: Curva 90º, de aço galvanizado a fogo, ø 1.1/4", para eletroduto, com uma luva. | C162: pç | D162: 1 | E162: 19.25 | F162: 19.25
A163: 2.75 | B163: Curva 90º, de aço galvanizado a fogo, ø 2", para eletroduto, com uma luva. | C163: pç | D163: 1 | E163: 52.06 | F163: 52.06
A164: 2.76 | B164: Curva 90º, de aço galvanizado a fogo, ø 3", para eletroduto, com uma luva. | C164: pç | D164: 1 | E164: 83.09 | F164: 83.09
A165: 2.77 | B165: Curva de PVC rígido, 90º, ø 3/4", cor cinza, com uma luva. | C165: pç | D165: 1 | E165: 2.19 | F165: 2.19
A166: 2.78 | B166: Curva de PVC rígido, 90º, ø 1", cor preta, com uma luva. | C166: pç | D166: 1 | E166: 3.99 | F166: 3.99
A167: 2.79 | B167: Curva de PVC rígido, 90º, ø 1.1/2", cor preta, com uma luva. | C167: pç | D167: 1 | E167: 7.9 | F167: 7.9
A168: 2.80 | B168: Disjuntor monopolar termomagnético, 15 à 30A, 2kA em 220Vca, padrão Nema. | C168: pç | D168: 1 | E168: 6.76 | F168: 6.76
A169: 2.81 | B169: Disjuntor monopolar termomagnético, 20A, 3kA em 220Vca, padrão Nema. | C169: pç | D169: 1 | E169: 9.46 | F169: 9.46
A170: 2.82 | B170: Disjuntor monopolar termomagnético, 40 à 70A, 2kA em 220Vca, padrão Nema. | C170: pç | D170: 1 | E170: 25.61 | F170: 25.61
A171: 2.83 | B171: Disjuntor tripolar termomagnético, 20 à 50A, 5kA em 380Vca, padrão Nema. | C171: pç | D171: 1 | E171: 40.98 | F171: 40.98
A172: 2.84 | B172: Disjuntor tripolar termomagnético, 60 à 100 A, 5kA em 380Vca, padrão Nema. | C172: pç | D172: 1 | E172: 149.6 | F172: 149.6
A173: 2.85 | B173: DPS 12 kA IP -66 | C173: pç | D173: 10 | E173: 74.38 | F173: 743.8
A174: 2.86 | B174: DPS 45kA IP -66 | C174: pç | D174: 10 | E174: 82.61 | F174: 826.1
A175: 2.87 | B175: Driver para Luminária de LED 500mA | C175: pç | D175: 4 | E175: 772.57 | F175: 3090.28
A176: 2.88 | B176: Driver para Luminária de LED 1200mA | C176: pç | D176: 4 | E176: 857.88 | F176: 3431.52
A177: 2.89 | B177: Eletroduto corrugado, em PEAD, ø de 1 1/2". | C177: m | D177: 1 | E177: 2.28 | F177: 2.28
A178: 2.90 | B178: Eletroduto corrugado, em PEAD, ø de 2". | C178: m | D178: 1 | E178: 3.42 | F178: 3.42
A179: 2.91 | B179: Eletroduto corrugado, metálico, revestido em PVC, ø de 1" 1/2". | C179: m | D179: 6 | E179: 1.93 | F179: 11.58
A180: 2.92 | B180: Eletroduto de aço galvanizado à fogo, tipo leve, ø 1 1/4", barra de 3m, com uma luva. | C180: pç | D180: 1 | E180: 52.66 | F180: 52.66
A181: 2.93 | B181: Eletroduto de PVC rígido, ø 3/4", 3m, cor preta, com uma luva. | C181: pç | D181: 1 | E181: 3.2 | F181: 3.2
A182: 2.94 | B182: Eletroduto de PVC rígido, ø 1", 3m, cor preta, com uma luva. | C182: pç | D182: 1 | E182: 5.95 | F182: 5.95
A183: 2.95 | B183: Eletroduto de PVC rígido, ø 1 1/2", 3m, cor preta, com uma luva. | C183: pç | D183: 1 | E183: 11.12 | F183: 11.12
A184: 2.96 | B184: Eletroduto de PVC rígido, ø 3/4", 3m, cor cinza, com uma luva. | C184: pç | D184: 1 | E184: 12.17 | F184: 12.17
A185: 2.97 | B185: Emenda para corda luminosa, 2 fios, 13mm | C185: pç | D185: 5 | E185: 2.57 | F185: 12.85
A186: 2.98 | B186: Enfeite natalino meteoro led, efeito snowfall, 80 Leds, 80cm | C186: pç | D186: 10 | E186: 96.2 | F186: 962
A187: 2.99 | B187: Enfeite natalino meteoro led, efeito snowfall, 120 Leds, 120cm | C187: pç | D187: 10 | E187: 124.35 | F187: 1243.5
A188: 2.100 | B188: Enfeite natalino meteoro led, efeito snowfall, 160 Leds, 1600cm | C188: pç | D188: 10 | E188: 300.94 | F188: =D188*E188 -> 3009.4
A189: 2.101 | B189: Figura luminosa temática, confeccionada em estrutura de aço 3/8", curvada, e/ou dobrada, e/ou soldada, pintada na cor alumínio, contornada por corda ( mangueira) luminosa com LED's de alto brilho , na cor branca, vermelha, azul amarela ou verde, com 36 led's por metro, unidade de corte a cada 2 metro, potência 2,4 W por metro, vidro a mediana de 80.000 horas, 220 V, 60 Hz, com proteção contra radiação UV, com acessório de conexão, fixada na estrutura com fita plástica dentada, tipo TR 18,Hellerman ou similar, á cada 10 cm, com ferragens para fixação em poste ou parede de edificação, uso ao tempo (preço por metro linear) | C189: m | D189: 10 | E189: 194.63 | F189: 1946.3
A190: 2.102 | B190: Fita de alumínio, dimensões 10x1mm,para proteção cabo de alumínio | C190: rl | D190: 10 | E190: 45.28 | F190: 452.8
A191: 2.103 | B191: Fita auto fusão, de borracha etileno-propileno (EPR), rolo de 10 metros, para isolação primária e vedação em emendas, conexões e instalação de acessórios em fios e cabos além de vedação contra umidade. | C191: rl | D191: 5 | E191: 16.21 | F191: 81.05
A192: 2.104 | B192: Fita isolante, rolo de 20 metros, para isolação de fios e cabos elétricos de até 750V, fabricada com filme a base de PVC e adesivo de borracha sensível a pressão, cor preta, e resistente a raios U.V ( Ultra violeta) | C192: rl | D192: 88 | E192: 4.59 | F192: 403.92
A193: 2.105 | B193: Fusível tipo D (diazed), 6A. | C193: pç | D193: 2 | E193: 1.49 | F193: 2.98
A194: 2.106 | B194: Fusível tipo D (diazed), 10A. | C194: pç | D194: 2 | E194: 1.48 | F194: 2.96
A195: 2.107 | B195: Fusível tipo D (diazed), 16A. | C195: pç | D195: 2 | E195: 1.52 | F195: 3.04
A196: 2.108 | B196: Conjunto Fusível Diazed (D) 6A, para proteção contra curto circuito, composto por uma base para fixação com parafuso, um parafuso de ajuste, um anel de proteção um fusível e uma tampa | C196: pç | D196: 1 | E196: 52.54 | F196: 52.54
A197: 2.109 | B197: Conjunto Fusível Diazed (D) 10A, para proteção contra curto circuito, composto por uma base para fixação com parafuso, um parafuso de ajuste, um anel de proteção um fusível e uma tampa | C197: pç | D197: 1 | E197: 52.54 | F197: 52.54
A198: 2.110 | B198: Grampo de suspensão para cabo multiplexado, ref. modelo GSE-0501 da PLP | C198: pç | D198: 1 | E198: 58.37 | F198: 58.37
A199: 2.111 | B199: Haste de aterramento, 5/8" x 2,40m, formada por núcleo de aço carbono SAE 1010/1020 com revestimento de cobre eletrolítico de pureza mínima de 99,9% , espessura mínima da camada de cobre de 240µ | C199: pç | D199: 5 | E199: 24.3 | F199: 121.5
A200: 2.112 | B200: Interruptor diferencial residual, bipolar, 25A, 30mA, 230V, 60Hz | C200: pç | D200: 1 | E200: 62.67 | F200: 62.67
A201: 2.113 | B201: Interruptor diferencial residual, bipolar,40A, 30mA, 230V, 60Hz | C201: pç | D201: 1 | E201: 96.77 | F201: 96.77
A202: 2.114 | B202: Isolador roldana, dimensões ø 76x80mm, em vidro ou porcelana, 1350 daN, de porcelana vidrada ou vidro recozido, padrão CELESC. | C202: pç | D202: 2 | E202: 4.86 | F202: 9.72
A203: 2.115 | B203: Lâmpada estroboscópica, 6 W, 220W, E27, 50/80 ciclos por minuto | C203: pç | D203: 5 | E203: 33.37 | F203: 166.85
A204: 2.116 | B204: Lâmpada multivapor metálico tubular 150 W, base E40, tubo de descarga cerâmico, temperatura de cor 4.200 K (permitindo-se variação de mais ou menos 5 %), índice de reprodução de cores 80 ou maior, fluxo luminoso 12.000 lumens ou maior, vida média 15.000 horas ou maior. | C204: pç | D204: 2 | E204: 229.31 | F204: 458.62
A205: 2.117 | B205: Lâmpada multivapor metálico tubular 250 W, base E40, tubo de descarga cerâmico, temperatura de cor 5.000 K (permitindo-se variação de mais ou menos 5 %), índice de reprodução de cores 80 ou maior, fluxo luminoso 20.000 lumens ou maior, vida média 15.000 horas ou maior. | C205: pç | D205: 5 | E205: 245.16 | F205: 1225.8
A206: 2.118 | B206: Lâmpada multivapor metálico tubular 400 W, base E-40, tubo de descarga cerâmico, temperatura de cor 5.000 K, índice de reprodução de cores 80 ou maior, fluxo luminoso 35.000 lumens ou maior, vida média 15.000 horas ou maior. | C206: pç | D206: 5 | E206: 266.41 | F206: 1332.05
... 75 more rows

Sheet Anexo II
A1: ANEXO II - CRONOGRAMA DE DESEMBOLSO
A4: ATIVIDADES | B4: MÊS | N4: TOTAL
B5: 1 | C5: 2 | D5: 3 | E5: 4 | F5: 5 | G5: 6 | H5: 7 | I5: 8 | J5: 9 | K5: 10 | L5: 11 | M5: 12
A6: SERVIÇOS DE ADMINISTRAÇÃO LOCAL E OPERAÇÃO INFORMATIZADA | B6: ='Anexo I'!E11 -> 41303 | C6: =B6 -> 41303 | D6: =C6 -> 41303 | E6: 41303 | F6: 41303 | G6: 41303 | H6: 41303 | I6: 41303 | J6: 41303 | K6: 41303 | L6: 41303 | M6: 41303 | N6: =SUM(B6:M6) -> 495636
A7: SERVIÇOS DE MANUTENÇÃO | B7: ='Anexo I'!E58 -> 52240 | C7: =B7 -> 52240 | D7: =C7 -> 52240 | E7: 52240 | F7: 52240 | G7: 52240 | H7: 52240 | I7: 52240 | J7: 52240 | K7: 52240 | L7: 52240 | M7: 52240 | N7: =SUM(B7:M7) -> 626880
A8: SERVIÇOS DE AMPLIAÇÃO E EFICIENTIZAÇAO | B8: =ROUND(('Anexo I'!$F$84-$N$6-$N$7)/12,2) -> 25551.38 | C8: =ROUND(('Anexo I'!$F$84-$N$6-$N$7)/12,2) -> 25551.38 | D8: =ROUND(('Anexo I'!$F$84-$N$6-$N$7)/12,2) -> 25551.38 | E8: =ROUND(('Anexo I'!$F$84-$N$6-$N$7)/12,2) -> 25551.38 | F8: =ROUND(('Anexo I'!$F$84-$N$6-$N$7)/12,2) -> 25551.38 | G8: =ROUND(('Anexo I'!$F$84-$N$6-$N$7)/12,2) -> 25551.38 | H8: =ROUND(('Anexo I'!$F$84-$N$6-$N$7)/12,2) -> 25551.38 | I8: =ROUND(('Anexo I'!$F$84-$N$6-$N$7)/12,2) -> 25551.38 | J8: =ROUND(('Anexo I'!$F$84-$N$6-$N$7)/12,2) -> 25551.38 | K8: =ROUND(('Anexo I'!$F$84-$N$6-$N$7)/12,2) -> 25551.38 | L8: =ROUND(('Anexo I'!$F$84-$N$6-$N$7)/12,2) -> 25551.38 | M8: ='Anexo I'!$F$84-$N$6-$N$7-SUM(B8:L8) -> 25551.32 | N8: =SUM(B8:M8) -> 306616.5
A9: MATERIAIS | B9: =ROUND('Anexo I'!$F$280/12,2) -> 67451.21 | C9: =ROUND('Anexo I'!$F$280/12,2) -> 67451.21 | D9: =ROUND('Anexo I'!$F$280/12,2) -> 67451.21 | E9: =ROUND('Anexo I'!$F$280/12,2) -> 67451.21 | F9: =ROUND('Anexo I'!$F$280/12,2) -> 67451.21 | G9: =ROUND('Anexo I'!$F$280/12,2) -> 67451.21 | H9: =ROUND('Anexo I'!$F$280/12,2) -> 67451.21 | I9: =ROUND('Anexo I'!$F$280/12,2) -> 67451.21 | J9: =ROUND('Anexo I'!$F$280/12,2) -> 67451.21 | K9: =ROUND('Anexo I'!$F$280/12,2) -> 67451.21 | L9: =ROUND('Anexo I'!$F$280/12,2) -> 67451.21 | M9: ='Anexo I'!$F$280-SUM(B9:L9) -> 67451.19 | N9: =SUM(B9:M9) -> 809414.5
A10: DESEMBOLSO MENSAL | B10: =B9+B8+B7+B6 -> 186545.59 | C10: =C9+C8+C7+C6 -> 186545.59 | D10: 186545.59 | E10: 186545.59 | F10: 186545.59 | G10: 186545.59 | H10: 186545.59 | I10: 186545.59 | J10: 186545.59 | K10: 186545.59 | L10: 186545.59 | M10: 186545.51 | N10: =SUM(N6:N9) -> 2238547

Sheet Anexo III
A1: ANEXO III - COMPOSIÇÃO DOS ENCARGOS SOCIAIS E DO BDI
A4: ENCARGOS SOCIAIS - MENSALISTA - SEM DESONERAÇÃO
A5: CÓDIGO | B5: DESCRIÇÃO | C5: %
A6: GRUPO A
A7: A1 | B7: INSS | C7: 0.2
A8: A2 | B8: SESI | C8: 0.015
A9: A3 | B9: SENAI | C9: 0.01
A10: A4 | B10: INCRA | C10: 0.002
A11: A5 | B11: SEBRAE | C11: 0.006
A12: A6 | B12: Salário Educação | C12: 0.025
A13: A7 | B13: Seguro Contra Acidentes de Trabalho | C13: 0.03
A14: A8 | B14: FGTS | C14: 0.08
A15: A9 | B15: SECONCI | C15: 0.01
A16: A | B16: Total | C16: 0.378
A17: GRUPO B
A18: B1 | B18: Repouso Semanal Remunerado | C18: Não incide
A19: B2 | B19: Feriados | C19: Não incide
A20: B3 | B20: Auxílio Enfermidade | C20: 0.0071
A21: B4 | B21: 13º Salário | C21: 0.0833
A22: B5 | B22: Licença Paternidade | C22: 0.0005
A23: B6 | B23: Faltas Justificadas | C23: 0.0056
A24: B7 | B24: Dias de chuvas | C24: Não incide
A25: B8 | B25: Auxílio Acidentes de Trabalho | C25: 0.0009
A26: B9 | B26: Férias Gozadas | C26: 0.0615
A27: B10 | B27: Salário Maternidade | C27: 0.0002
A28: B | B28: Total | C28: 0.1592
A29: GRUPO C
A30: C1 | B30: Aviso Prévio Indenizado | C30: 0.0367
A31: C2 | B31: Aviso Prévio Remunerado | C31: 0.0009
A32: C3 | B32: Férias Indenizadas | C32: 0.0412
A33: C4 | B33: Depósoito Recisão Sem Justa Causa | C33: 0.0362
A34: C5 | B34: Indenização Adicional | C34: 0.0031
A35: C | B35: Total | C35: 0.1181
A36: GRUPO D (Incidência Acumulativa)
A37: D1 | B37: Reincidência do Grupo A sobre Grupo B | C37: 0.0602
A38: D2 | B38: Reincidência do Grupo A sobre Aviso Prévio Trabalhado e Reincidência do FGTS sobre Aviso Prévio Indenizado | C38: 0.0033
A39: D | B39: Total | C39: 0.0635
A40: TOTAL ( A+B+C+D) | C40: 0.7188
A42: BDI - BENEFÍCIOS E DESPESAS INDIRETAS
A43: ABREV | B43: COMPONENTTE | C43: SERVIÇOS | D43: DIFERENCIADO PARA MATERIAIS
A44: AC | B44: Administração Central | C44: 0.0793 | D44: 0.0449
A45: R | B45: Margem de Risco | C45: 0.0197 | D45: 0.0089
A46: SG | B46: Seguros e Garantias | C46: 0.0056 | D46: 0.0082
A47: DF | B47: Despesas Financeiras | C47: 0.0111 | D47: 0.0111
A48: I | B48: TRIBUTOS | C48: 0.0665 | D48: 0.0365
B49: ISS | C49: 0.03 | D49: 0
B50: PIS | C50: 0.0065 | D50: 0.0065
B51: COFINS | C51: 0.03 | D51: 0.03
B52: CPRB | C52: 0 | D52: 0
A53: L | B53: LUCRO | C53: 0.0951 | D53: 0.0622
B54: BDI TOTAL | C54: 0.2786 | D54: 0.1838
B55: Notas:
B56: 1) Valores máximos de BDI e Encargos Sociais aceitáveis na licitação
B57: 2) Fórmula para cálculo do BDI
B60: 3) Se adotar CPRB no BDI, zerar INSS nos encargos sociais

Sheet Anexo IV
A1: ANEXO IV - COMPOSIÇÃO DE PREÇOS UNITÁRIOS
A4: COMPOSIÇÃO DE PREÇO UNITÁRIO PARA ADMINISTRAÇÃO LOCAL E OPERAÇÃO INFORMATIZADA
A5: ITEM | B5: DESCRIÇÃO | E5: PREÇO
A6: 1 | B6: PESSOAL | C6: UN | D6: QUANT. | E6: P. UNIT. (R$) | F6: P. TOTAL (R$)
A7: 1.1 | B7: Gerente Geral do Contrato (cód. SINAPI: 90768) (1 profissional x 176 horas por mês). | C7: h | D7: 176 | E7: 78.21 | F7: =E7*D7 -> 13764.96
A8: 1.2 | B8: Eletrotécnico (cód. SINAPI:88266) (1 profissional x 176 horas por mês). | C8: h | D8: 176 | E8: 38.46 | F8: =E8*D8 -> 6768.96
B9: CUSTO PESSOAL | F9: =SUM(F7:F8) -> 20533.92
A10: 2 | B10: VEÍCULOS/EQUIPAMENTOS | C10: UN | D10: QUANT. | E10: P. UNIT. (R$) | F10: P. TOTAL (R$)
A11: 2.1 | B11: Automóvel | C11: h | D11: 88 | E11: 40.54 | F11: =E11*D11 -> 3567.52
B12: CUSTO DE VEÍCULOS/EQUIPAMENTOS | F12: =SUM(F11) -> 3567.52
A13: 3 | B13: LICENÇAS DE SOFTWARES E EQUIPAMENTOS DE HARDWARE | C13: UN | D13: QUANT. | E13: P. UNIT. (R$) | F13: P. TOTAL (R$)
A14: 3.1 | B14: Licença de software para gestão operacional integrada de sistema de iluminação pública, com atendimento ao munícipe. | C14: mês | D14: 1 | E14: 2652 | F14: =E14*D14 -> 2652
A15: 3.2 | B15: Licença de software para telegestão de unidades de iluminação pública (inclui transmissão e armazenamento de dados). | C15: mês | D15: 1 | E15: 480 | F15: =E15*D15 -> 480
A16: 3.3 | B16: Licença de software para rastreamento de veículos via internet. | C16: mês | D16: 1 | E16: 95 | F16: 95
A17: 3.7 | B17: Tablet com tela de 8" ou maior, conectividade 4G, Wi-fi, memória RAM 2 GB ou maior, capcidade de armazenamento 32 GB, ou maior, câmera traseira com resolução mínima de 2MP (2 para veículos de campo). (Depreciação 36 meses). | C17: mês | D17: 1 | E17: 55 | F17: 55
A18: 3.8 | B18: Computador tipo desktop completo, ou notebook, para estação de trabalho, configuração mínima: 7a. geração do processador Intel I5, ou equivalente, tela LED de 13" ou superior, memória RAM 8GB, disco rígido de 1 TB, ou superior, 1 porta USB 3.0 e 1 porta USB 2.0, placa de rede wireless 802.11.b/g/n ou superior, ou licença de sistema operacional Windows 10 Pro, ou equivalente.(Depreciação 36 meses). | C18: mês | D18: 1 | E18: 102.64 | F18: 102.64
A19: 3.9 | B19: Impressora multifuniconal colorida para papel formato A3 e A4. (Depreciação 36 meses). | C19: mês | D19: 1 | E19: 47.22 | F19: 47.22
B20: CUSTO DE LICENÇAS DE SOFTWARES E EQUIPAMENTOS DE HARDWARE | F20: =SUM(F14:F19) -> 3431.86
A21: 4 | B21: INFRAESTRUTURA | C21: UN | D21: QUANT. | E21: P. UNIT. (R$) | F21: P. TOTAL (R$)
A22: 4.1 | B22: Locação de imóvel para o CCO, incluindo escritórios, almoxarifado e garagens. | C22: mês | D22: 1 | E22: 3000 | F22: =E22*D22 -> 3000
A23: 4.2 | B23: Consumo de energia elétrica. | C23: mês | D23: 1 | E23: 400 | F23: =E23*D23 -> 400
A24: 4.3 | B24: Consumo de água e esgoto. | C24: mês | D24: 1 | E24: 150 | F24: 150
A25: 4.4 | B25: Telefones. | C25: mês | D25: 1 | E25: 300 | F25: 300
A26: 4.5 | B26: Internet banda larga. | C26: mês | D26: 1 | E26: 200 | F26: 200
A27: 4.6 | B27: Materiais de consumo (papel, canetas, tinta para impressoras, materiais de limpeza e higiene, etc.). | C27: mês | D27: 1 | E27: 100 | F27: 100
A28: 4.7 | B28: Mobiliário para estações de trabalho e demais áreas do CCO, incluindo mesas, cadeiras, divisórias, aparelhos de ar condicionado, e tudo o mais para o perfeito funcionamento do CCO. | C28: mês | D28: 1 | E28: 100 | F28: 100
A29: 4.8 | B29: Instalações de rede elétrica e lógica. | C29: mês | D29: 1 | E29: 200 | F29: 200
A30: 4.9 | B30: Vigilância eletrônica. | C30: mês | D30: 1 | E30: 320 | F30: 320
B31: CUSTO DE INFRAESTRUTURA | F31: =SUM(F22:F30) -> 4770
A32: 5 | B32: CUSTO DIRETO DO ITEM | F32: =F31+F20+F12+F9 -> 32303.3
A33: 6 | B33: BDI | D33: 0.2786 | F33: =F32*D33 -> 8999.7
A34: 7 | B34: PREÇO UNITÁRIO DO SERVIÇO | C34: MÊS | F34: =SUM(F32:F33) -> 41303
A35: BASE: TABELA SINAPI/CEF/IBGE - SANTA CATARINA
A36: Nota:
A37: 1) Os salários adotados nas composiçoes de preços unitários (CPU) devem respeitar os pisos salariais estabelecidos pelos sindicatos da categoria e convenções coletivas, na data de entrega das propostas, sob pena de desclassificação.
A40: COMPOSIÇÃO DE PREÇO UNITÁRIO PARA MANUTENÇÃO DO SISTEMA DE ILUMINAÇÃO PÚBLICA
A41: ITEM | B41: DESCRIÇÃO | E41: PREÇO
A42: 1 | B42: PESSOAL | C42: UN | D42: QUANT. | E42: P. UNIT. (R$) | F42: P. TOTAL (R$)
B43: Eletricista (cód. SINAPI:88264) (2 profissional x 176 horas por mês). | C43: h | D43: 352 | E43: 35.86 | F43: =E43*D43 -> 12622.72
B44: Periculosidade 30% | C44: h | D44: 0.3 | E44: =F43 -> 12622.72 | F44: =E44*D44 -> 3786.82
B45: CUSTO PESSOAL | F45: =SUM(F43:F44) -> 16409.54
A46: 2 | B46: VEÍCULOS/EQUIPAMENTOS | C46: UN | D46: QUANT. | E46: P. UNIT. (R$) | F46: P. TOTAL (R$)
B47: Caminhonete equipada com cesto elevatório para serviço em altura da até 10 m (CPU caminhonete) | C47: h | D47: 176 | E47: 66.2 | F47: =E47*D47 -> 11651.2
B48: Equipamento para realização de serviços em alturas maiores que 10m (cód. SINAPI: 89272). | C48: h | D48: 32 | E48: 114 | F48: =E48*D48 -> 3648
B49: Automóvel (CPU automóvel) | C49: h | D49: 176 | E49: 40.84 | F49: 7187.84
B50: EPC's, conjunto de ferramentas e equipamentos para veículos de campo, conforme descrito no projeto básico. | C50: cj | D50: 1 | E50: 159.43 | F50: 159.43
B51: EPI's para eletricistas e motoristas, conjunto de EPI's conforme descrito no projeto básico. | C51: cj | D51: 2 | E51: 100.59 | F51: 201.18
B52: CUSTO DE VEÍCULOS/EQUIPAMENTOS | F52: =SUM(F47:F51) -> 22847.65
A53: 3 | B53: DESCARTE CONTROLADO | C53: UN | D53: QUANT. | E53: P. UNIT. (R$) | F53: P. TOTAL (R$)
B54: Lâmpada de descarga | C54: pç | D54: 800 | E54: 2 | F54: =E54*D54 -> 1600
B55: CUSTO DE DESCARTE CONTROLADO | F55: =SUM(F54) -> 1600
A56: 4 | B56: CUSTO DIRETO DO ITEM | F56: =F55+F52+F45 -> 40857.19
A57: 5 | B57: BDI | D57: 0.2786 | F57: =F56*D57 -> 11382.81
A58: 6 | B58: PREÇO UNITÁRIO DO SERVIÇO | C58: MÊS | F58: =SUM(F56:F57) -> 52240
A59: BASE: TABELA SINAPI/CEF/IBGE - SANTA CATARINA
A60: Nota:
A61: 1) Os salários adotados nas composiçoes de preços unitários (CPU) devem respeitar os pisos salariais estabelecidos pelos sindicatos da categoria e convenções coletivas, na data de entrega das propostas, sob pena de desclassificação.
A64: COMPOSIÇÃO DE PREÇO UNITÁRIO PARA M&V - ELABORAÇÃO DE PLANO DE M&V DE ACORDO COM PIMVP
A65: ITEM | B65: DESCRIÇÃO | E65: PREÇO
A66: 1 | B66: PESSOAL | C66: UN | D66: QTDE | E66: R$/un | F66: R$ TOTAL
B67: Auxiliar de escritorio (cód. SINAPI:90772) (1 profissional x 176 horas por mês). | C67: h | D67: 160 | E67: 18.54 | F67: =E67*D67 -> 2966.4
B68: Eletricista (cód. SINAPI:88264) (2 profissionais). | C68: h | D68: 160 | E68: 27.47 | F68: 4395.2
B69: Eletrotécnico (cód. SINAPI:88266) (1 profissional x 176 horas por mês). | C69: h | D69: 160 | E69: 28.46 | F69: 4553.6
B70: Engenheiro eletricista (cód. SINAPI:91677) (1 profissional x 176 horas por mês). | C70: h | D70: 80 | E70: 101.04 | F70: 8083.2
B71: CUSTO PESSOAL | D71: p | F71: =SUM(F67:F70) -> 19998.4
A72: 2 | B72: VEÍCULOS/EQUIPAMENTOS | C72: UN | D72: QTDE | E72: R$/un | F72: TOTAL
B73: Caminhonete cabine simples com motor 1.6 flex, câmbio manual, potência 101/104 cv, 2 portas - chp diurno. af_11/2015 (cód. SINAPI:92145) | C73: CHI | D73: 1 | E73: 55.32 | F73: =E73*D73 -> 55.32
B74: CUSTO DE VEÍCULOS/EQUIPAMENTOS | D74: p | F74: =SUM(F73:F73) -> 55.32
A75: 3 | B75: CUSTO DIRETO DO ITEM | D75: p | F75: =F74+F71 -> 20053.72
A76: 4 | B76: BDI | D76: 0.2786 | F76: =F75*D76 -> 5586.97
A77: 5 | B77: PREÇO UNITÁRIO DO SERVIÇO | D77: p | F77: =SUM(F75:F76) -> 25640.69
A78: BASE: TABELA SINAPI/CEF/IBGE - SANTA CATARINA
A81: COMPOSIÇÃO DE PREÇO UNITÁRIO PARA M&V - ELABORAÇÃO DE RELATÓRIO DE M&V DE ACORDO COM PIMVP
A82: ITEM | B82: DESCRIÇÃO | E82: PREÇO
A83: 1 | B83: PESSOAL | C83: UN | D83: QTDE | E83: R$/un | F83: R$ TOTAL
B84: Eletrotécnico (cód. SINAPI:88266) (1 profissional x 176 horas por mês). | C84: h | D84: 240 | E84: 28.46 | F84: =E84*D84 -> 6830.4
B85: Engenheiro eletricista (cód. SINAPI:91677) (1 profissional x 176 horas por mês). | C85: h | D85: 40 | E85: 101.04 | F85: 4041.6
B86: CUSTO PESSOAL | D86: p | F86: =SUM(F84:F85) -> 10872
A87: 2 | B87: VEÍCULOS/EQUIPAMENTOS | C87: UN | D87: QTDE | E87: R$/un | F87: TOTAL
B88: Automóvel - sedan - 71 a 115 cv (tabela de preços de consultoria do dnit - dez/18) | C88: H | D88: 48 | E88: 17.89 | F88: =E88*D88 -> 858.72
B89: CUSTO DE VEÍCULOS/EQUIPAMENTOS | D89: p | F89: =SUM(F88) -> 858.72
A90: 3 | B90: CUSTO DIRETO DO ITEM | D90: p | F90: =F89+F86 -> 11730.72
A91: 4 | B91: BDI | D91: 0.2786 | F91: =D91*F90 -> 3268.18
A92: 5 | B92: PREÇO UNITÁRIO DO SERVIÇO | D92: p | F92: =SUM(F90:F91) -> 14998.9
A93: BASE: TABELA SINAPI/CEF/IBGE - SANTA CATARINA | D93: p
A96: COMPOSIÇÃO DE PREÇO UNITÁRIO PARA M&V - INSTALAÇÃO E RETIRADA DE MEDIDOR EM LUMINÁRIA
A97: ITEM | B97: DESCRIÇÃO | E97: PREÇO
A98: 1 | B98: PESSOAL | C98: UN | D98: QTDE | E98: R$/un | F98: R$ TOTAL
B99: Eletricista (cód. SINAPI:88264) (2 profissionais). | C99: h | D99: 480 | E99: 27.47 | F99: =E99*D99 -> 13185.6
B100: Encarregado geral (cód. SINAPI:90776) (1 profissionais). | C100: h | D100: 160 | E100: 32.43 | F100: 5188.8
B101: CUSTO PESSOAL | D101: p | F101: =SUM(F99:F100) -> 18374.4
A102: 2 | B102: VEÍCULOS/EQUIPAMENTOS | C102: UN | D102: QTDE | E102: R$/un | F102: TOTAL
B103: Caminhonete cabine simples com motor 1.6 flex, câmbio manual, potência 101/104 cv, 2 portas - chp diurno. af_11/2015 (cód. SINAPI:92145) | C103: CHP | D103: 480 | E103: 55.32 | F103: =E103*D103 -> 26553.6
B104: CUSTO DE VEÍCULOS/EQUIPAMENTOS | D104: p | F104: =SUM(F103:F103) -> 26553.6
A105: 3 | B105: CUSTO DIRETO DO ITEM | D105: p | F105: =F104+F101 -> 44928
A106: 4 | B106: BDI | D106: 0.2786 | F106: =D106*F105 -> 12516.94
A107: 5 | B107: PREÇO UNITÁRIO DO SERVIÇO | D107: p | F107: =SUM(F105:F106) -> 57444.94
A108: BASE: TABELA SINAPI/CEF/IBGE - SANTA CATARINA | D108: p
